Cogmind - Beta 15 @@@ ROGUE MODE // 2025.10.05 @ 19:05:44 Player: microsand Result: Destroyed by D-53 Grenadier with Mini Grenade Launcher Performance ------------- Evolutions (1) 500 Regions Visited (3) 600 Robots Destroyed (20) 100 Value Destroyed (361) 361 Prototype IDs (1) 20 Alien Tech Used (0) 0 Bonus (0) 0 TOTAL SCORE: 1581 Bonus ------- None Cogmind --------- Core Integrity 0/400 Matter 290/300 Energy 62/100 System Corruption 1% Temperature Cool (0) Movement Core (150) Ox2 Location -9/Mines Parts ------- > --- POWER (1) -------- (None) > --- PROPULSION (2) --- (None) > --- UTILITY (3) ------ Utility Shielding > --- WEAPON (3) ------- Particle Cannon Advanced Beam Cannon > --- INVENTORY (5) ---- Ion Engine Light Ion Engine Light Ion Engine Small Storage Unit Peak State ------------ > --- POWER ------------ Light Ion Engine > --- PROPULSION ------- Aluminum Leg Improved Aluminum Leg > --- UTILITY ---------- Huge Storage Unit Improved Targeting Computer Utility Shielding > --- WEAPON ----------- Small Laser Particle Gun Particle Cannon > --- INVENTORY -------- Ion Engine Light Ion Engine Light Treads Light Treads Aluminum Leg Small Storage Unit Small Laser Advanced Beam Cannon Light Assault Rifle [Rating: 14] Favorites ----------- Power Ion Engine Engine Ion Engine Propulsion Light Treads Treads Light Treads Leg Improved Aluminum Leg Utility Huge Storage Unit Storage Huge Storage Unit Processor Improved Targeting Computer Protection Utility Shielding Weapon Small Laser Energy Gun Small Laser Energy Cannon Particle Cannon Ballistic Gun Light Assault Rifle Build | -11 -10 -9 -9 ------- Run | Yrd Mat Mat Min Slots Evolved 2 | . . 2 . Power . | . . . . Propulsion . | . . . . Utility 1 | . . 1 . Weapon 1 | . . 1 . Parts Attached 20 | 6 4 9 1 Power 3 | 1 . 2 . Engine 3 | 1 . 2 . Core . | . . . . Reactor . | . . . . Propulsion 5 | 2 . 3 . Treads 3 | 2 . 1 . Leg 2 | . . 2 . Wheel . | . . . . Hover . | . . . . Flight . | . . . . Utility 5 | 1 3 1 . Device . | . . . . Storage 2 | 1 1 . . Processor 2 | . 1 1 . Hackware . | . . . . Protection 1 | . 1 . . Artifact . | . . . . Weapon 7 | 2 1 3 1 Energy Gun 4 | 2 1 1 . Energy Cannon 2 | . . 1 1 Ballistic Gun 1 | . . 1 . Ballistic Cannon . | . . . . Launcher . | . . . . Special Weapon . | . . . . Impact Weapon . | . . . . Slashing Weapon . | . . . . Piercing Weapon . | . . . . Special Melee Weapon . | . . . . Unidentified Prototypes 1 | . . . 1 Parts Lost 10 | . 1 2 7 Power 2 | . . 1 1 Propulsion 4 | . 1 . 3 Utility 1 | . . . 1 Weapon 3 | . . 1 2 Highest Loss Streak 7 | . 1 1 7 To Critical Strikes . | . . . . Average Backups 4 | . 2 5 9 Power 1 | . . 2 2 Propulsion . | . . 1 2 Utility . | . . 1 1 Weapon 1 | . 1 . 4 Tool/Special . | . . . . Unused Backups 4 | . . . 4 Power 1 | . . . 1 Propulsion 1 | . . . 1 Utility . | . . . . Weapon 2 | . . . 2 Tool/Special . | . . . . Average Slot Usage (%) 89 | . 89 90 86 Engine 11 | . 14 10 8 Treads 12 | . 20 7 . Leg 6 | . . 8 17 Storage 12 | . 16 11 8 Processor 6 | . . 11 8 Protection 9 | . 8 9 11 Energy Gun 26 | . 28 27 18 Energy Cannon 1 | . . 2 11 Ballistic Gun 1 | . . 2 . Peak Build Rating 14 | 6 7 14 14 Average Rating 8 | 4 6 10 11 On Entrance 6 | . 6 7 14 Naked Turns . | . . . . Heaviest Build 93 | 13 93 92 92 Greatest Support 40 | 40 40 40 23 Greatest Overweight (x) 6 | . 4 4 6 Average Overweight (x) 2 | . 2 3 2 Largest Inventory Capacity 25 | 8 25 25 25 Average Capacity 22 | 6 22 25 21 Most Carried 11 | 3 5 11 11 Average Carried 4 | . 2 5 9 Final Capacity 25 | 8 25 25 5 Final Carried 11 | 1 5 11 4 Class Distribution -------------------- 50% | Mutant 35% | Gunner 13% | Tank Dominant Class ---------------- Mutant | -10/Materials Gunner | -9/Materials Gunner | -9/Mines Resources | -11 -10 -9 -9 ----------- Run | Yrd Mat Mat Min Matter Collected 401 | 213 80 108 . Remotely . | . . . . Salvage Created 483 | . 150 308 25 Parts 36 | . 6 25 5 Haulers Intercepted . | . . . . Recyclers Shooed . | . . . . Parts Field Recycled . | . . . . Retrieved Matter . | . . . . Parts Self-Destructed . | . . . . Prevented . | . . . . Kills | -11 -10 -9 -9 ------- Run | Yrd Mat Mat Min Combat Hostiles Destroyed 16 | . 5 8 3 Guns 14 | . 4 8 2 Cannons 1 | . . . 1 Classes Destroyed 5 | . 3 2 . Builder 2 | . . 2 . Watcher 2 | . 1 1 . Swarmer 10 | . 3 4 3 Grunt 5 | . 2 3 . Brawler 1 | . . 1 . Best Kill Streak 5 | . 3 5 3 Combat Bots Only 4 | . 3 4 3 Max Kills in Single Turn 2 | . 2 2 1 Gunslinging 1 | . 1 . . Exploded . | . . . . Melee . | . . . . Uniques/NPCs Destroyed . | . . . . Combat | -11 -10 -9 -9 -------- Run | Yrd Mat Mat Min Hostile Shots Fired 143 | . 45 48 50 Missed 36 | . 11 11 14 Hits 107 | . 34 37 36 Projectile 107 | . 34 37 36 AOE 11 | . . . 11 Damage Taken 1542 | . 376 358 808 Core 446 | . 41 94 311 Absorbed by Shields . | . . . . Redirected to Shielding 29 | . 2 12 15 Core Remaining (%) 91 | 100 83 . . Volleys Fired 58 | . 25 28 5 Largest 3 | . 2 3 2 Hottest 173 | . 90 173 136 Shots Fired 138 | . 50 79 9 Gun 131 | . 50 78 3 Cannon 7 | . . 1 6 Launcher . | . . . . Special . | . . . . Kinetic 12 | . . 12 . Thermal 126 | . 50 67 9 Explosive . | . . . . Electromagnetic . | . . . . Robot Hit Streak 11 | . 9 11 4 Robot Miss Streak 8 | . 8 3 2 Penetration Max . | . . . . Secondary Targets 1 | . 1 . . Max Gunslinging Chain 1 | . 1 . . Shots Hit Robots 76 | . 25 46 5 Core Hits 28 | . 8 17 3 Critical Kills . | . . . . Critical Parts Destroyed . | . . . . Critical Strikes . | . . . . Melee Attacks . | . . . . Impact . | . . . . Slashing . | . . . . Piercing . | . . . . Sneak Attacks . | . . . . Combat Hostiles . | . . . . Follow-up Attacks . | . . . . Damage Inflicted 911 | . 303 522 86 Guns 843 | . 299 521 23 Cannons 63 | . . . 63 Explosions . | . . . . Melee . | . . . . Ramming 5 | . 4 1 . Kinetic 45 | . . 45 . Thermal 861 | . 299 476 86 Explosive . | . . . . Electromagnetic . | . . . . Impact . | . . . . Slashing . | . . . . Piercing . | . . . . Highest Corruption 1 | . . . 1 Average Corruption 1 | . . . 1 Corruption Purged . | . . . . Corruption Blocked . | . . . . Effects 1 | . . . 1 Data Loss (minor) 1 | . . . 1 Overload Shots . | . . . . Overflow Damage 1 | . . . 1 Projectiles 1 | . . . 1 Explosions . | . . . . Melee . | . . . . Knockbacks . | . . . . Impact . | . . . . Kinetic . | . . . . Secondary . | . . . . Self-Inflicted Damage . | . . . . Shots . | . . . . Rammed 2 | . 1 1 . Targets Rammed 2 | . 1 1 . Kicked . | . . . . Crushed . | . . . . Highest Temperature 474 | . 474 301 84 Average Temperature 114 | . 145 93 46 Received Heat Transfer 273 | . 147 126 . Effects 2 | . 2 . . Shutdowns 2 | . 2 . . Siege Activations . | . . . . Martial Activations . | . . . . Shielding Activations . | . . . . Robots Disrupted . | . . . . Combat Hostiles . | . . . . Robots Corrupted . | . . . . Combat Hostiles . | . . . . Parts Fried . | . . . . Impact Corruptions . | . . . . Robots Melted 1 | . 1 . . Combat Hostiles 1 | . 1 . . Parts Melted 5 | . 3 2 . Heat Transferred 2101 | . 782 1158 161 Parts Sabotaged . | . . . . Parts Stolen . | . . . . Parts Stripped . | . . . . Power Chain Reactions . | . . . . Alert | -11 -10 -9 -9 ------- Run | Yrd Mat Mat Min Maximum Alert Level . | . . . . Low Security (%) 100 | 100 100 100 100 Level 1 . | . . . . Level 2 . | . . . . Level 3 . | . . . . Level 4 . | . . . . Level 5 . | . . . . High Security . | . . . . Max Security . | . . . . Peak Influence 79 | . 52 79 50 Initial . | . . . . Average 10 | . 5 16 3 Influence Increases 402 | . 127 205 70 Destroy 0b10 Robot/C 320 | . 100 160 60 Destroy 0b10 Robot/NC 20 | . 5 15 . Destroy Leader 54 | . 22 22 10 Successful Hack 8 | . . 8 . Influence Decreases 352 | . 127 205 20 Time Decay 312 | . 117 185 10 Lost Part 40 | . 10 20 10 Squads Dispatched 2 | . . 2 . Investigation 1 | . . 1 . Extermination . | . . . . Reinforcement 1 | . . 1 . Assault . | . . . . Garrison . | . . . . Intercept . | . . . . Searches Triggered . | . . . . Construction Impeded . | . . . . Haulers Reinforced . | . . . . Active Scanning Responses . | . . . . Cargo Convoy Interrupts . | . . . . Stealth | -11 -10 -9 -9 --------- Run | Yrd Mat Mat Min Distress Signals 5 | . . 4 1 Communications Jammed . | . . . . Distress Signals . | . . . . Times Spotted 45 | . 15 19 11 Peak Tracking Total 11 | . 5 4 11 Tactical Retreats . | . . . . Traps | -11 -10 -9 -9 ------- Run | Yrd Mat Mat Min Traps Triggered . | . . . . Indirectly . | . . . . Trap Hack Attempts . | . . . . Triggered . | . . . . Disarmed . | . . . . Reprogrammed . | . . . . Reused . | . . . . Traps Extracted . | . . . . Installed . | . . . . Triggered . | . . . . Machines | -11 -10 -9 -9 ---------- Run | Yrd Mat Mat Min Machines Disabled . | . . . . Max in Single Turn . | . . . . Machines Repaired . | . . . . Machines Dismantled . | . . . . Machines Sabotaged . | . . . . Overloaded Fab Kills . | . . . . Hacking | -11 -10 -9 -9 --------- Run | Yrd Mat Mat Min Machines Accessed 2 | . . 2 . Terminals 1 | . . 1 . Fabricators . | . . . . Repair Stations . | . . . . Recycling Units 1 | . . 1 . Scanalyzers . | . . . . Garrison Access . | . . . . Total Hacks 3 | . . 3 . Successful 3 | . . 3 . Failed . | . . . . Catastrophic . | . . . . Database Lockouts . | . . . . Manual 4 | . . 4 . Terminals 2 | . . 2 . Fabricators . | . . . . Repair Stations . | . . . . Recycling Units 1 | . . 1 . Scanalyzers . | . . . . Garrison Access . | . . . . Terminal Hacks 1 | . . 1 . Record 1 | . . 1 . Fabricator Hacks . | . . . . Repair Station Hacks . | . . . . Recycling Unit Hacks . | . . . . Scanalyzer . | . . . . Garrison Access Hacks . | . . . . Unauthorized Hacks 2 | . . 2 . Terminals 1 | . . 1 . Override 1 | . . 1 . Fabricators . | . . . . Repair Stations . | . . . . Recycling Units 1 | . . 1 . Mask 1 | . . 1 . Scanalyzers . | . . . . Garrison Access . | . . . . Data Cores Recovered . | . . . . Used . | . . . . Hacking Detections 1 | . . 1 . Full Trace Events . | . . . . Feedback Events . | . . . . Feedback Blocked . | . . . . Robot Schematics Acquired . | . . . . Robots Built . | . . . . Authchips . | . . . . Time . | . . . . Total Robot Build Rating . | . . . . Part Schematics Acquired . | . . . . Parts Built . | . . . . Authchips . | . . . . Time . | . . . . Total Part Build Rating . | . . . . Parts Repaired . | . . . . Time . | . . . . Parts Recycled . | . . . . Recycled Matter . | . . . . Retrieved Matter . | . . . . Retrieved Components . | . . . . Parts Scanalyzed . | . . . . Part Schematics Acquired . | . . . . Parts Damaged . | . . . . Bothacking | -11 -10 -9 -9 ------------ Run | Yrd Mat Mat Min Used RIF Installer . | . . . . Robots Hacked . | . . . . Non-combat . | . . . . Combat . | . . . . Robot Hacks Applied . | . . . . Relay Couplers Released . | . . . . Fabnet Peak Effective % . | . . . . Robots Rewired . | . . . . Allies Hacked . | . . . . Hacks Repelled . | . . . . Allies | -11 -10 -9 -9 -------- Run | Yrd Mat Mat Min Total Allies . | . . . . Largest Group . | . . . . Highest-Rated Group . | . . . . Highest-Rated Ally . | . . . . Total Orders . | . . . . Ally Attacks . | . . . . Total Damage . | . . . . Kills . | . . . . Allies Corrupted . | . . . . Allies Melted . | . . . . Intel | -11 -10 -9 -9 ------- Run | Yrd Mat Mat Min Active Infowar (turns) 597 | . 32 565 . Optics 597 | . 32 565 . Robot Analysis Total . | . . . . Derelict Logs Recovered . | . . . . Drone Launches . | . . . . Drone Recoveries . | . . . . Exploration | -11 -10 -9 -9 ------------- Run | Yrd Mat Mat Min Turns Passed 2741 | 118 1017 1415 191 Spaces Moved 707 | 72 238 332 65 Core 24 | 8 . . 16 Treads 486 | 64 238 181 3 Legs 197 | . . 151 46 Wheels . | . . . . Hover . | . . . . Flight . | . . . . Fastest Speed 50 | 50 160 320 100 Average Speed 346 | 147 367 390 270 Slowest Speed 540 | 160 480 480 540 Overloaded Moves . | . . . . Propulsion Burnouts . | . . . . Robots Hopped . | . . . . Potential Cave-ins 3 | . . . 3 Cave-ins Triggered 1 | . . . 1 Exploration Rate (%) 23 | 6 37 30 19 Regions Visited 3 Branch Regions 1 Pre-discovered Areas . | . . . . Known Exits Taken . | . . . . Unknown Exits Taken 3 | 1 1 1 . Scrap Searched . | . . . . Spaces Dug . | . . . . Terrain Destroyed . | . . . . Melee . | . . . . Projectile . | . . . . AOE . | . . . . Terrain Rammed . | . . . . Walls Destroyed . | . . . . Machines Disabled . | . . . . Actions | -11 -10 -9 -9 --------- Run | Yrd Mat Mat Min Total 876 | 84 329 389 74 Wait 62 | . 57 5 . Move 703 | 71 237 331 64 Hop . | . . . . Pick Up 25 | 7 5 12 1 Fast Attach . | . . . . Attach 15 | 6 1 6 2 Detach 1 | . . 1 . Swap 8 | . 3 5 . Drop 1 | . . . 1 Fire 58 | . 25 28 5 Melee . | . . . . Ram . | . . . . Kick . | . . . . Crush 2 | . 1 1 . Escape Stasis 1 | . . . 1 Rewire . | . . . . Trap . | . . . . Miscellaneous . | . . . . Route ------- -11/Scrapyard -10/Materials -9/Materials -9/Mines History --------- Turn | Location | Event 6 | -11/Scrapyard | Discovered new exit (range 14) 119 | -11/Scrapyard | Entered Materials 315 | -10/Materials | Build established: Mutant 676 | -10/Materials | Discovered new exit (range 12) 1136 | -10/Materials | Entered another Materials area 1136 | -9/Materials | Evolved 2 slots: Utility x1, Weapon x1 1632 | -9/Materials | Build established: Tank 2003 | -9/Materials | Build established: Gunner 2495 | -9/Materials | Discovered new exit (range 16) 2551 | -9/Materials | Entered Mines 2645 | -9/Mines | Assembled infested the area 2701 | -9/Mines | Core integrity fell below 50% 2707 | -9/Mines | Crushed by falling debris 2708 | -9/Mines | Core integrity fell below 20% 2742 | -9/Mines | Destroyed by D-53 Grenadier with Mini Grenade Launcher Last Messages --------------- The unstable cave ceiling collapses. Dropped Huge Storage Unit. The unstable cave ceiling collapses. Crushed by falling debris. Imp. Targeting Computer destroyed. System corrupted by crushing effect (+1). Lgt. Treads destroyed. T-07 Excavator is excavating. Destroyed Flight Unit. S-10 Pest destroyed. T-07 Excavator is excavating. S-10 Pest destroyed. T-07 Excavator is excavating. Sml. Laser destroyed. System corrupted: Component data lost. S-10 Pest destroyed. Acquired Lgt. Ion Engine. T-07 Excavator is excavating. Identified Adv. Beam Cannon. T-07 Excavator is excavating. Map ----- +----------------------------------------------------+ | ????????????????????????????????# #????????? | | ???????????????????????????###??# #????????? | | ??????????????????????????? #??# #????????? | | ???????????????????????????# #??# #????????? | | ???????????????????????????#"#??# #????????? | | ???????????????????????????#%#??# #????????? | | ??????????????????????????##"#??# #????????? | | ???????????????????####??## ##?# #????????? | | ???????????????????# ### #?# #????????? | | ???????????????????# ### #????????? | | ?????????????###????# ## #????????? | | ????????????## #?#### #????????? | | ????????????# ## #####????????? | | ?????????#### ##????????????? | | ???????? $ #?????????????? | | ?????????? # #?????????????? | | ?????????????# " t #??????????????? | | ??????????????# % [# #???????????????? | | ??????????????# ]!= d #???????????????? | | ??????????????# ][# #???????????????? | | ??????????????## d #???????????????? | | ???????????????### # ##???????????????? | | ?????????????????########%##????????????????? | | ??????????????????????# [ ####### ##???????? | | ?????????????????????## #???????? | | ?????????????????????# =@[ t#???????? | | ?????????????????????# [ ##### #???????? | | ?????????????????????# #?????????????? | | ?????????????????????# ##?????????????? | | ?????????????????????#### ####??????????????? | | ?????????????????????????#??????????????????? | | ????????????????????????????????????????????? | | ????????????????????????????????????????????? | | ????????????????????????????????????????????? | | | | | | | | | | | | | | | | | | | | | | | | | | | | | | | | | +----------------------------------------------------+ Best States ------------- Heat Dissipation 28 Energy Generation 10 Energy Capacity 250 Matter Stores 300 Matter Capacity 300 Sight Range 18 Terrain Scan Density 10 Utility Shielding 33 Evasion (%) 40 Targeting Accuracy 6 Recoil Reduction 2 Item Schematics ----------------- None Robot Schematics ------------------ None Fabricated ------------ Nothing Repaired ---------- Nothing Alien Tech Used ----------------- None Achievements -------------- Brute Force True Hacker Challenges ------------ None Game ------ Seed OmegaPotentialJammer Manual? 0 Play Time 00:12:43 Cumulative 6.2 hours Start 2025.10.05 @ 18:44:47 End 2025.10.05 @ 19:05:44 Sessions 1 Manual Loads 0 Difficulty Rogue Special Mode None Game No. 18 Rogue 18 Adventurer 0 Explorer 0 Win Type - Total 0 Types 0/0/0/0/0/0/0/0/0/0 Lore% 10 Gallery% 13 Achievement% 12 Wizard Run 0 Options --------- Layout 1 ASCII 0 Keyboard 0 Movement Numpad Keybinds 0 Fullscreen 2 Font 24/Smallcaps Map View 50x35 Zoom Use 0% Tactical HUD 0 Map Filters NONE Filters NONE Steam 1 RUN: 19f9b766-35b3-4cc3-ada3-2250163dae8d